[Event "Titled Tuesday Blitz July 25 Late 2023"]
[White "Pinero Rodriguez, Carlos Jose"]
[Black "Matlakov, Maxim"]
[WhiteFideId "3901726"]
[BlackFideId "4168003"]
[WhiteElo "2641"]
[BlackElo "2972"]
[Result "0-1"]
[Round "7"]
[TimeControl "180+2"]
[Date "2023.07.25"]
[WhiteClock "0:00:34"]
[BlackClock "0:01:18"]
[Board "20"]

1. b3 {[%clk 0:03:00]}  d5 {[%clk 0:02:58]} 2. Bb2 {[%clk 0:03:01]}  Bf5 {[%clk 0:02:58]} 3. Nf3 {[%clk 0:03:01]}  e6 {[%clk 0:02:58]} 4. e3 {[%clk 0:03:02]}  Nf6 {[%clk 0:02:56]} 5. d4 {[%clk 0:03:02]}  h6 {[%clk 0:02:56]} 6. Bd3 {[%clk 0:03:02]}  Bxd3 {[%clk 0:02:55]} 7. Qxd3 {[%clk 0:03:03]}  c6 {[%clk 0:02:52]} 8. Nbd2 {[%clk 0:03:03]}  Nbd7 {[%clk 0:02:52]} 9. a3 {[%clk 0:03:03]}  Bd6 {[%clk 0:02:49]} 10. O-O {[%clk 0:03:03]}  O-O {[%clk 0:02:49]} 11. Ne5 {[%clk 0:03:00]}  Qc7 {[%clk 0:02:47]} 12. f4 {[%clk 0:02:59]}  c5 {[%clk 0:02:46]} 13. Rac1 {[%clk 0:02:53]}  Rac8 {[%clk 0:02:43]} 14. c3 {[%clk 0:02:48]}  Qb6 {[%clk 0:02:40]} 15. b4 {[%clk 0:02:47]}  cxd4 {[%clk 0:02:19]} 16. cxd4 {[%clk 0:02:47]}  Rfd8 {[%clk 0:02:10]} 17. Rc2 {[%clk 0:02:35]}  Rxc2 {[%clk 0:02:07]} 18. Qxc2 {[%clk 0:02:34]}  Qb5 {[%clk 0:02:04]} 19. Qd3 {[%clk 0:02:33]}  a6 {[%clk 0:01:57]} 20. Qxb5 {[%clk 0:02:29]}  axb5 {[%clk 0:01:57]} 21. Rc1 {[%clk 0:02:26]}  Nb6 {[%clk 0:01:56]} 22. g3 {[%clk 0:01:53]}  Nc4 {[%clk 0:01:56]} 23. Ndxc4 {[%clk 0:01:52]}  bxc4 {[%clk 0:01:56]} 24. Nf3 {[%clk 0:01:41]}  Ne4 {[%clk 0:01:55]} 25. Rc2 {[%clk 0:01:41]}  Ra8 {[%clk 0:01:50]} 26. Nd2 {[%clk 0:01:37]}  Nxd2 {[%clk 0:01:47]} 27. Rxd2 {[%clk 0:01:37]}  c3 {[%clk 0:01:46]} 28. Bxc3 {[%clk 0:01:36]}  Rxa3 {[%clk 0:01:46]} 29. Rc2 {[%clk 0:01:36]}  Rb3 {[%clk 0:01:45]} 30. Kf2 {[%clk 0:01:35]}  h5 {[%clk 0:01:42]} 31. Kf3 {[%clk 0:01:33]}  Kh7 {[%clk 0:01:41]} 32. h3 {[%clk 0:01:26]}  b5 {[%clk 0:01:41]} 33. Bd2 {[%clk 0:01:23]}  Kg6 {[%clk 0:01:35]} 34. g4 {[%clk 0:01:18]}  Bxb4 {[%clk 0:01:34]} 35. Bxb4 {[%clk 0:01:17]}  Rxb4 {[%clk 0:01:35]} 36. Rc7 {[%clk 0:01:14]}  h4 {[%clk 0:01:28]} 37. Rb7 {[%clk 0:01:02]}  Rb1 {[%clk 0:01:27]} 38. Rb6 {[%clk 0:00:56]}  b4 {[%clk 0:01:20]} 39. f5+ {[%clk 0:00:56]}  Kf6 {[%clk 0:01:19]} 40. fxe6 {[%clk 0:00:56]}  fxe6 {[%clk 0:01:20]} 41. e4 {[%clk 0:00:34]}  Rb3+ {[%clk 0:01:19]} 42. Kf4 {[%clk 0:00:34]}  g5# {[%clk 0:01:18]} 0-1


[Site "https://www.chess.com"]

[Event "Titled Tuesday Blitz July 25 Late 2023"]
[White "Dardha, Daniel"]
[Black "Voege, Tobias"]
[WhiteFideId "240990"]
[BlackFideId "1270513"]
[WhiteElo "2877"]
[BlackElo "2641"]
[Result "1-0"]
[Round "7"]
[TimeControl "180+2"]
[Date "2023.07.25"]
[WhiteClock "0:02:09"]
[BlackClock "0:01:33"]
[Board "22"]

1. d4 {[%clk 0:03:00]}  d5 {[%clk 0:02:56]} 2. Bf4 {[%clk 0:03:00]}  Nc6 {[%clk 0:02:56]} 3. e4 {[%clk 0:02:58]}  dxe4 {[%clk 0:02:48]} 4. d5 {[%clk 0:02:55]}  Nb8 {[%clk 0:02:40]} 5. Nc3 {[%clk 0:02:55]}  Nf6 {[%clk 0:02:37]} 6. f3 {[%clk 0:02:54]}  e3 {[%clk 0:02:33]} 7. Qd3 {[%clk 0:02:50]}  e6 {[%clk 0:02:31]} 8. O-O-O {[%clk 0:02:44]}  Be7 {[%clk 0:02:21]} 9. dxe6 {[%clk 0:02:39]}  Qxd3 {[%clk 0:02:13]} 10. exf7+ {[%clk 0:02:39]}  Kxf7 {[%clk 0:02:14]} 11. Bxd3 {[%clk 0:02:37]}  c6 {[%clk 0:02:09]} 12. Bxe3 {[%clk 0:02:36]}  Be6 {[%clk 0:02:08]} 13. Nge2 {[%clk 0:02:36]}  Nbd7 {[%clk 0:02:06]} 14. Nf4 {[%clk 0:02:36]}  Ne5 {[%clk 0:02:03]} 15. Nxe6 {[%clk 0:02:36]}  Kxe6 {[%clk 0:02:02]} 16. Be2 {[%clk 0:02:34]}  b5 {[%clk 0:02:00]} 17. h3 {[%clk 0:02:32]}  a5 {[%clk 0:01:59]} 18. f4 {[%clk 0:02:32]}  Ned7 {[%clk 0:01:58]} 19. Rhe1 {[%clk 0:02:30]}  Rhd8 {[%clk 0:01:54]} 20. Bf3 {[%clk 0:02:27]}  Kf7 {[%clk 0:01:47]} 21. Bxc6 {[%clk 0:02:26]}  Rac8 {[%clk 0:01:44]} 22. Bxb5 {[%clk 0:02:21]}  Bb4 {[%clk 0:01:44]} 23. Bd4 {[%clk 0:02:21]}  Nc5 {[%clk 0:01:42]} 24. a3 {[%clk 0:02:16]}  Bxc3 {[%clk 0:01:41]} 25. Bxc3 {[%clk 0:02:17]}  Nfe4 {[%clk 0:01:40]} 26. Rxd8 {[%clk 0:02:13]}  Rxd8 {[%clk 0:01:41]} 27. Bxa5 {[%clk 0:02:12]}  Rb8 {[%clk 0:01:39]} 28. Bc4+ {[%clk 0:02:12]}  Kf6 {[%clk 0:01:33]} 29. b4 {[%clk 0:02:09]} 1-0


[Site "https://www.chess.com"]

[Event "Titled Tuesday Blitz July 25 Late 2023"]
[White "Bjelobrk, Igor"]
[Black "Ibarra Jerez, Jose Carlos"]
[WhiteFideId "4300726"]
[BlackFideId "2226332"]
[WhiteElo "2663"]
[BlackElo "2895"]
[Result "1-0"]
[Round "7"]
[TimeControl "180+2"]
[Date "2023.07.25"]
[WhiteClock "0:00:14"]
[BlackClock "0:00:21"]
[Board "26"]

1. d4 {[%clk 0:03:00]}  Nf6 {[%clk 0:02:59]} 2. c4 {[%clk 0:03:00]}  d6 {[%clk 0:03:00]} 3. Nc3 {[%clk 0:03:00]}  e5 {[%clk 0:03:00]} 4. Nf3 {[%clk 0:03:00]}  e4 {[%clk 0:03:00]} 5. Ng5 {[%clk 0:02:59]}  Qe7 {[%clk 0:03:00]} 6. g3 {[%clk 0:02:57]}  h6 {[%clk 0:03:00]} 7. Nh3 {[%clk 0:02:57]}  c6 {[%clk 0:03:00]} 8. Bg2 {[%clk 0:02:53]}  Bf5 {[%clk 0:03:00]} 9. d5 {[%clk 0:02:16]}  c5 {[%clk 0:02:56]} 10. b3 {[%clk 0:01:42]}  g6 {[%clk 0:02:55]} 11. Bb2 {[%clk 0:01:42]}  Bg7 {[%clk 0:02:55]} 12. Qd2 {[%clk 0:01:13]}  O-O {[%clk 0:02:54]} 13. Nd1 {[%clk 0:01:13]}  g5 {[%clk 0:02:37]} 14. Ne3 {[%clk 0:01:12]}  Bg6 {[%clk 0:02:38]} 15. O-O {[%clk 0:01:11]}  Nbd7 {[%clk 0:02:38]} 16. f4 {[%clk 0:01:08]}  exf3 {[%clk 0:02:34]} 17. exf3 {[%clk 0:01:08]}  Rae8 {[%clk 0:02:31]} 18. Rae1 {[%clk 0:01:07]}  Qd8 {[%clk 0:02:26]} 19. Bc3 {[%clk 0:00:57]}  a6 {[%clk 0:02:08]} 20. a4 {[%clk 0:00:54]}  Qb6 {[%clk 0:02:04]} 21. Qb2 {[%clk 0:00:52]}  Ne5 {[%clk 0:02:00]} 22. Nf2 {[%clk 0:00:52]}  Re7 {[%clk 0:01:52]} 23. f4 {[%clk 0:00:51]}  Nd3 {[%clk 0:01:52]} 24. Nxd3 {[%clk 0:00:50]}  Bxd3 {[%clk 0:01:53]} 25. Bxf6 {[%clk 0:00:48]}  Bxf1 {[%clk 0:01:44]} 26. Bxg7 {[%clk 0:00:46]}  Rfe8 {[%clk 0:01:44]} 27. Bxh6 {[%clk 0:00:40]}  f6 {[%clk 0:01:32]} 28. Bxf1 {[%clk 0:00:34]}  Rxe3 {[%clk 0:01:05]} 29. Rxe3 {[%clk 0:00:33]}  Rxe3 {[%clk 0:01:06]} 30. Qxf6 {[%clk 0:00:33]}  Qc7 {[%clk 0:01:06]} 31. fxg5 {[%clk 0:00:22]}  Qe7 {[%clk 0:00:56]} 32. Qf2 {[%clk 0:00:18]}  Rxb3 {[%clk 0:00:53]} 33. g6 {[%clk 0:00:18]}  Qe8 {[%clk 0:00:35]} 34. Qf6 {[%clk 0:00:14]}  Qe3+ {[%clk 0:00:21]} 35. Bxe3 {[%clk 0:00:14]} 1-0


[Site "https://www.chess.com"]

[Event "Titled Tuesday Blitz July 25 Late 2023"]
[White "Rodrigue-Lemieux, Shawn"]
[Black "Danielyan, Vahe"]
[WhiteFideId "2620049"]
[BlackFideId "13304828"]
[WhiteElo "2883"]
[BlackElo "2647"]
[Result "1-0"]
[Round "7"]
[TimeControl "180+2"]
[Date "2023.07.25"]
[WhiteClock "0:00:01"]
[BlackClock "0:00:00"]
[Board "27"]

1. h4 {[%clk 0:03:00]}  d6 {[%clk 0:02:57]} 2. h5 {[%clk 0:03:01]}  h6 {[%clk 0:02:56]} 3. a4 {[%clk 0:03:02]}  Nf6 {[%clk 0:02:55]} 4. a5 {[%clk 0:03:03]}  Nc6 {[%clk 0:02:54]} 5. a6 {[%clk 0:03:03]}  bxa6 {[%clk 0:02:54]} 6. e3 {[%clk 0:03:03]}  e5 {[%clk 0:02:55]} 7. Bxa6 {[%clk 0:03:02]}  Bxa6 {[%clk 0:02:55]} 8. Rxa6 {[%clk 0:03:03]}  Qd7 {[%clk 0:02:51]} 9. c3 {[%clk 0:03:02]}  d5 {[%clk 0:02:49]} 10. d4 {[%clk 0:02:59]}  Bd6 {[%clk 0:02:49]} 11. Nf3 {[%clk 0:02:56]}  e4 {[%clk 0:02:49]} 12. Nfd2 {[%clk 0:02:56]}  Ne7 {[%clk 0:02:47]} 13. c4 {[%clk 0:02:55]}  c6 {[%clk 0:02:46]} 14. Nc3 {[%clk 0:02:54]}  O-O {[%clk 0:02:46]} 15. Qa4 {[%clk 0:02:53]}  Qg4 {[%clk 0:02:40]} 16. cxd5 {[%clk 0:02:52]}  Qxg2 {[%clk 0:02:35]} 17. Rf1 {[%clk 0:02:52]}  Nf5 {[%clk 0:02:14]} 18. Rxc6 {[%clk 0:02:44]}  Rfe8 {[%clk 0:02:09]} 19. Qa6 {[%clk 0:02:39]}  Rad8 {[%clk 0:01:56]} 20. Qe2 {[%clk 0:02:30]}  Nh4 {[%clk 0:01:51]} 21. Kd1 {[%clk 0:02:25]}  Nf3 {[%clk 0:01:49]} 22. Kc2 {[%clk 0:02:18]}  Nxd2 {[%clk 0:01:24]} 23. Bxd2 {[%clk 0:02:19]}  Bb4 {[%clk 0:01:18]} 24. Qc4 {[%clk 0:01:31]}  Bxc3 {[%clk 0:01:17]} 25. bxc3 {[%clk 0:01:32]}  Nxd5 {[%clk 0:01:16]} 26. Rc5 {[%clk 0:01:28]}  Nb6 {[%clk 0:01:13]} 27. Qa6 {[%clk 0:01:29]}  Rd6 {[%clk 0:01:06]} 28. Rf5 {[%clk 0:01:21]}  Rc8 {[%clk 0:01:02]} 29. Rb1 {[%clk 0:01:15]}  Rdc6 {[%clk 0:00:54]} 30. Qxa7 {[%clk 0:01:12]}  R8c7 {[%clk 0:00:48]} 31. Qb8+ {[%clk 0:01:11]}  Rc8 {[%clk 0:00:38]} 32. Qb7 {[%clk 0:01:12]}  R8c7 {[%clk 0:00:38]} 33. Qb8+ {[%clk 0:01:12]}  Rc8 {[%clk 0:00:38]} 34. Qf4 {[%clk 0:01:02]}  f6 {[%clk 0:00:36]} 35. d5 {[%clk 0:00:53]}  Rc4 {[%clk 0:00:25]} 36. Rxb6 {[%clk 0:00:46]}  Qf1 {[%clk 0:00:24]} 37. Rc6 {[%clk 0:00:17]}  Qd3+ {[%clk 0:00:12]} 38. Kc1 {[%clk 0:00:17]}  Ra8 {[%clk 0:00:12]} 39. Kb2 {[%clk 0:00:05]}  Ra2+ {[%clk 0:00:11]} 40. Kb3 {[%clk 0:00:03]}  Qc2+ {[%clk 0:00:11]} 41. Kxc4 {[%clk 0:00:03]}  Qd3+ {[%clk 0:00:04]} 42. Kc5 {[%clk 0:00:03]}  Ra5+ {[%clk 0:00:04]} 43. Kb6 {[%clk 0:00:01]}  Qb5+ {[%clk 0:00:03]} 44. Kc7 {[%clk 0:00:02]}  Ra7+ {[%clk 0:00:04]} 45. Kd8 {[%clk 0:00:01]}  Qb8+ {[%clk 0:00:00]} 46. Qxb8 {[%clk 0:00:01]} 1-0


[Site "https://www.chess.com"]

[Event "Titled Tuesday Blitz July 25 Late 2023"]
[White "Bartel, Mateusz"]
[Black "Tanaka, Taira Tyler"]
[WhiteFideId "1112635"]
[BlackFideId "7002351"]
[WhiteElo "2832"]
[BlackElo "2635"]
[Result "1-0"]
[Round "7"]
[TimeControl "180+2"]
[Date "2023.07.25"]
[WhiteClock "0:01:23"]
[BlackClock "0:00:32"]
[Board "28"]

1. e4 {[%clk 0:03:00]}  e5 {[%clk 0:02:58]} 2. f4 {[%clk 0:02:59]}  d5 {[%clk 0:02:58]} 3. exd5 {[%clk 0:02:55]}  exf4 {[%clk 0:02:57]} 4. d4 {[%clk 0:02:54]}  Nf6 {[%clk 0:02:56]} 5. c4 {[%clk 0:02:51]}  Bb4+ {[%clk 0:02:52]} 6. Nc3 {[%clk 0:02:51]}  c6 {[%clk 0:02:49]} 7. Qe2+ {[%clk 0:02:39]}  Qe7 {[%clk 0:02:45]} 8. Qxe7+ {[%clk 0:02:33]}  Kxe7 {[%clk 0:02:46]} 9. dxc6 {[%clk 0:02:26]}  Nxc6 {[%clk 0:02:46]} 10. Nf3 {[%clk 0:02:24]}  Bg4 {[%clk 0:02:41]} 11. d5 {[%clk 0:02:20]}  Bxf3 {[%clk 0:02:41]} 12. gxf3 {[%clk 0:02:21]}  Nd4 {[%clk 0:02:42]} 13. Kf2 {[%clk 0:02:21]}  Nc2 {[%clk 0:02:36]} 14. Rb1 {[%clk 0:02:17]}  Bc5+ {[%clk 0:02:36]} 15. Kg2 {[%clk 0:02:08]}  Ne3+ {[%clk 0:02:33]} 16. Bxe3 {[%clk 0:02:01]}  Bxe3 {[%clk 0:02:28]} 17. b4 {[%clk 0:01:53]}  g5 {[%clk 0:02:20]} 18. c5 {[%clk 0:01:51]}  h5 {[%clk 0:02:00]} 19. d6+ {[%clk 0:01:51]}  Kd8 {[%clk 0:02:00]} 20. Bc4 {[%clk 0:01:39]}  Rh7 {[%clk 0:01:48]} 21. Nd5 {[%clk 0:01:31]}  Nxd5 {[%clk 0:01:32]} 22. Bxd5 {[%clk 0:01:32]}  Rb8 {[%clk 0:01:33]} 23. Be4 {[%clk 0:01:28]}  Rg7 {[%clk 0:01:32]} 24. Rhd1 {[%clk 0:01:28]}  g4 {[%clk 0:01:19]} 25. Rd5 {[%clk 0:01:27]}  h4 {[%clk 0:00:52]} 26. fxg4 {[%clk 0:01:27]}  Rxg4+ {[%clk 0:00:53]} 27. Kf3 {[%clk 0:01:27]}  Rg1 {[%clk 0:00:48]} 28. Rxg1 {[%clk 0:01:25]}  Bxg1 {[%clk 0:00:32]} 29. Rg5 {[%clk 0:01:23]} 1-0


[Site "https://www.chess.com"]

[Event "Titled Tuesday Blitz July 25 Late 2023"]
[White "Troff, Kayden"]
[Black "Haydon, David L"]
[WhiteFideId "2047896"]
[BlackFideId "415405"]
[WhiteElo "2812"]
[BlackElo "2632"]
[Result "1/2-1/2"]
[Round "7"]
[TimeControl "180+2"]
[Date "2023.07.25"]
[WhiteClock "0:00:13"]
[BlackClock "0:00:13"]
[Board "29"]

1. d4 {[%clk 0:03:00]}  c6 {[%clk 0:02:59]} 2. Nf3 {[%clk 0:03:00]}  d5 {[%clk 0:03:00]} 3. Bf4 {[%clk 0:03:00]}  Nf6 {[%clk 0:03:00]} 4. e3 {[%clk 0:03:00]}  Bf5 {[%clk 0:03:00]} 5. Bd3 {[%clk 0:03:00]}  e6 {[%clk 0:03:00]} 6. O-O {[%clk 0:03:00]}  Bd6 {[%clk 0:02:59]} 7. Ne5 {[%clk 0:03:00]}  Qc7 {[%clk 0:02:58]} 8. Bg3 {[%clk 0:03:00]}  Nbd7 {[%clk 0:02:56]} 9. f4 {[%clk 0:03:00]}  Ne4 {[%clk 0:02:54]} 10. Bh4 {[%clk 0:02:49]}  f6 {[%clk 0:01:57]} 11. Nxd7 {[%clk 0:02:46]}  Qxd7 {[%clk 0:01:57]} 12. Nd2 {[%clk 0:02:45]}  Nxd2 {[%clk 0:01:55]} 13. Qxd2 {[%clk 0:02:42]}  O-O {[%clk 0:01:50]} 14. c4 {[%clk 0:02:37]}  Rae8 {[%clk 0:01:45]} 15. Rac1 {[%clk 0:02:31]}  Bb8 {[%clk 0:01:42]} 16. Qc2 {[%clk 0:02:19]}  Bxd3 {[%clk 0:01:18]} 17. Qxd3 {[%clk 0:02:20]}  Kh8 {[%clk 0:01:12]} 18. b4 {[%clk 0:01:58]}  dxc4 {[%clk 0:01:07]} 19. Qxc4 {[%clk 0:01:58]}  e5 {[%clk 0:01:06]} 20. dxe5 {[%clk 0:01:49]}  fxe5 {[%clk 0:01:04]} 21. Rcd1 {[%clk 0:01:50]}  Qg4 {[%clk 0:01:03]} 22. Bg3 {[%clk 0:01:22]}  exf4 {[%clk 0:01:03]} 23. exf4 {[%clk 0:01:21]}  h5 {[%clk 0:00:59]} 24. Rd4 {[%clk 0:01:09]}  a6 {[%clk 0:00:52]} 25. Bf2 {[%clk 0:00:56]}  Rxf4 {[%clk 0:00:48]} 26. h3 {[%clk 0:00:52]}  Rxd4 {[%clk 0:00:37]} 27. Qxd4 {[%clk 0:00:32]}  Qxd4 {[%clk 0:00:36]} 28. Bxd4 {[%clk 0:00:32]}  Kg8 {[%clk 0:00:35]} 29. Rf5 {[%clk 0:00:31]}  Bg3 {[%clk 0:00:27]} 30. Bf2 {[%clk 0:00:19]}  Bxf2+ {[%clk 0:00:27]} 31. Rxf2 {[%clk 0:00:20]}  Re1+ {[%clk 0:00:26]} 32. Kh2 {[%clk 0:00:20]}  Re4 {[%clk 0:00:27]} 33. a3 {[%clk 0:00:18]}  Re3 {[%clk 0:00:27]} 34. Rd2 {[%clk 0:00:17]}  Rxa3 {[%clk 0:00:25]} 35. Rd8+ {[%clk 0:00:18]}  Kh7 {[%clk 0:00:24]} 36. Rb8 {[%clk 0:00:18]}  b5 {[%clk 0:00:24]} 37. Rb6 {[%clk 0:00:19]}  Ra4 {[%clk 0:00:25]} 38. Rxc6 {[%clk 0:00:19]}  Ra3 {[%clk 0:00:23]} 39. h4 {[%clk 0:00:16]}  g6 {[%clk 0:00:23]} 40. g3 {[%clk 0:00:16]}  Kh6 {[%clk 0:00:23]} 41. Kh3 {[%clk 0:00:16]}  Kg7 {[%clk 0:00:24]} 42. Rb6 {[%clk 0:00:16]}  Ra4 {[%clk 0:00:23]} 43. Rc6 {[%clk 0:00:17]}  Kf7 {[%clk 0:00:23]} 44. Kg2 {[%clk 0:00:16]}  Ra3 {[%clk 0:00:22]} 45. Rb6 {[%clk 0:00:16]}  Ra2+ {[%clk 0:00:21]} 46. Kf3 {[%clk 0:00:17]}  Rb2 {[%clk 0:00:21]} 47. Rxa6 {[%clk 0:00:17]}  Rxb4 {[%clk 0:00:22]} 48. Rb6 {[%clk 0:00:17]}  Rb3+ {[%clk 0:00:21]} 49. Kf4 {[%clk 0:00:17]}  b4 {[%clk 0:00:17]} 50. Rb7+ {[%clk 0:00:16]}  Ke6 {[%clk 0:00:17]} 51. Rb6+ {[%clk 0:00:17]}  Kf7 {[%clk 0:00:16]} 52. Rb5 {[%clk 0:00:16]}  Kf6 {[%clk 0:00:11]} 53. Rb7 {[%clk 0:00:16]}  Ke6 {[%clk 0:00:08]} 54. Rb8 {[%clk 0:00:15]}  Kf6 {[%clk 0:00:08]} 55. Rb6+ {[%clk 0:00:14]}  Kg7 {[%clk 0:00:09]} 56. Rb5 {[%clk 0:00:12]}  Kh6 {[%clk 0:00:09]} 57. Rb7 {[%clk 0:00:12]}  Rb1 {[%clk 0:00:09]} 58. Kf3 {[%clk 0:00:10]}  b3 {[%clk 0:00:10]} 59. Kg2 {[%clk 0:00:11]}  b2 {[%clk 0:00:09]} 60. Kh2 {[%clk 0:00:10]}  Rc1 {[%clk 0:00:05]} 61. Rxb2 {[%clk 0:00:10]}  Rc8 {[%clk 0:00:06]} 62. Kg2 {[%clk 0:00:11]}  Rd8 {[%clk 0:00:05]} 63. Kf3 {[%clk 0:00:11]}  Rc8 {[%clk 0:00:05]} 64. Rf2 {[%clk 0:00:10]}  Rf8+ {[%clk 0:00:06]} 65. Kg2 {[%clk 0:00:11]}  Rxf2+ {[%clk 0:00:06]} 66. Kxf2 {[%clk 0:00:11]}  g5 {[%clk 0:00:07]} 67. Kf3 {[%clk 0:00:12]}  gxh4 {[%clk 0:00:08]} 68. gxh4 {[%clk 0:00:12]}  Kg6 {[%clk 0:00:08]} 69. Ke4 {[%clk 0:00:13]}  Kf6 {[%clk 0:00:09]} 70. Kf4 {[%clk 0:00:13]}  Kg6 {[%clk 0:00:10]} 71. Ke5 {[%clk 0:00:14]}  Kh7 {[%clk 0:00:11]} 72. Kf5 {[%clk 0:00:15]}  Kg7 {[%clk 0:00:11]} 73. Kg5 {[%clk 0:00:15]}  Kh7 {[%clk 0:00:12]} 74. Kxh5 {[%clk 0:00:13]}  Kg7 {[%clk 0:00:13]} 1/2-1/2


[Site "https://www.chess.com"]

[Event "Titled Tuesday Blitz July 25 Late 2023"]
[White "Pulpan, Jakub"]
[Black "Sivakumar, Shaashwath"]
[WhiteFideId "302759"]
[BlackFideId "30912156"]
[WhiteElo "2782"]
[BlackElo "2611"]
[Result "1-0"]
[Round "7"]
[TimeControl "180+2"]
[Date "2023.07.25"]
[WhiteClock "0:00:11"]
[BlackClock "0:00:06"]
[Board "33"]

1. Nf3 {[%clk 0:02:58]}  d5 {[%clk 0:02:59]} 2. b3 {[%clk 0:02:54]}  Nf6 {[%clk 0:02:59]} 3. Bb2 {[%clk 0:02:53]}  Bf5 {[%clk 0:03:00]} 4. Nh4 {[%clk 0:02:51]}  Bg4 {[%clk 0:02:58]} 5. h3 {[%clk 0:02:47]}  Bh5 {[%clk 0:02:58]} 6. g4 {[%clk 0:02:45]}  Bg6 {[%clk 0:02:58]} 7. Nxg6 {[%clk 0:02:39]}  hxg6 {[%clk 0:02:58]} 8. Bg2 {[%clk 0:02:40]}  e5 {[%clk 0:02:58]} 9. d3 {[%clk 0:02:39]}  Nbd7 {[%clk 0:02:54]} 10. Nd2 {[%clk 0:02:37]}  c6 {[%clk 0:02:54]} 11. e3 {[%clk 0:02:37]}  Bd6 {[%clk 0:02:53]} 12. Qe2 {[%clk 0:02:36]}  Qe7 {[%clk 0:02:53]} 13. c4 {[%clk 0:02:30]}  a5 {[%clk 0:02:49]} 14. a3 {[%clk 0:02:27]}  b5 {[%clk 0:02:45]} 15. cxb5 {[%clk 0:02:24]}  cxb5 {[%clk 0:02:44]} 16. g5 {[%clk 0:02:23]}  Nh5 {[%clk 0:02:44]} 17. Bxd5 {[%clk 0:02:23]}  Rc8 {[%clk 0:02:44]} 18. Ne4 {[%clk 0:02:14]}  Nc5 {[%clk 0:02:43]} 19. h4 {[%clk 0:01:38]}  O-O {[%clk 0:02:34]} 20. O-O {[%clk 0:01:34]}  Kh7 {[%clk 0:02:26]} 21. Rfc1 {[%clk 0:01:27]}  Nxe4 {[%clk 0:02:25]} 22. dxe4 {[%clk 0:01:26]}  Rxc1+ {[%clk 0:02:19]} 23. Bxc1 {[%clk 0:01:26]}  f6 {[%clk 0:02:20]} 24. Qg4 {[%clk 0:01:22]}  fxg5 {[%clk 0:02:05]} 25. hxg5 {[%clk 0:01:22]}  Qd8 {[%clk 0:01:53]} 26. Bd2 {[%clk 0:01:22]}  Be7 {[%clk 0:01:52]} 27. Kg2 {[%clk 0:01:12]}  Bxg5 {[%clk 0:01:50]} 28. Rc1 {[%clk 0:01:04]}  Bh4 {[%clk 0:01:48]} 29. f3 {[%clk 0:01:02]}  Be7 {[%clk 0:01:31]} 30. Rc6 {[%clk 0:01:01]}  Rf6 {[%clk 0:01:28]} 31. Rc8 {[%clk 0:00:54]}  Qb6 {[%clk 0:01:17]} 32. Qd7 {[%clk 0:00:39]}  Qd6 {[%clk 0:01:00]} 33. Qxd6 {[%clk 0:00:26]}  Bxd6 {[%clk 0:00:57]} 34. a4 {[%clk 0:00:24]}  bxa4 {[%clk 0:00:55]} 35. bxa4 {[%clk 0:00:20]}  Ba3 {[%clk 0:00:38]} 36. Bxa5 {[%clk 0:00:18]}  Ra6 {[%clk 0:00:35]} 37. Bc3 {[%clk 0:00:17]}  Bd6 {[%clk 0:00:28]} 38. a5 {[%clk 0:00:13]}  Nf6 {[%clk 0:00:28]} 39. Bb7 {[%clk 0:00:12]}  Ra7 {[%clk 0:00:26]} 40. a6 {[%clk 0:00:13]}  Nd7 {[%clk 0:00:24]} 41. Rd8 {[%clk 0:00:13]}  Nc5 {[%clk 0:00:19]} 42. Rxd6 {[%clk 0:00:11]}  Nxb7 {[%clk 0:00:19]} 43. axb7 {[%clk 0:00:11]}  Rxb7 {[%clk 0:00:19]} 44. Bxe5 {[%clk 0:00:11]}  Rb5 {[%clk 0:00:20]} 45. f4 {[%clk 0:00:11]}  Kg8 {[%clk 0:00:20]} 46. Rd7 {[%clk 0:00:12]}  Rb1 {[%clk 0:00:17]} 47. Rxg7+ {[%clk 0:00:11]}  Kf8 {[%clk 0:00:16]} 48. Rxg6 {[%clk 0:00:12]}  Kf7 {[%clk 0:00:16]} 49. Rf6+ {[%clk 0:00:12]}  Kg8 {[%clk 0:00:16]} 50. Kf3 {[%clk 0:00:13]}  Kh7 {[%clk 0:00:15]} 51. Kg4 {[%clk 0:00:13]}  Rg1+ {[%clk 0:00:15]} 52. Kf5 {[%clk 0:00:14]}  Rg6 {[%clk 0:00:13]} 53. Rf7+ {[%clk 0:00:14]}  Kh6 {[%clk 0:00:12]} 54. Rf6 {[%clk 0:00:13]}  Kh7 {[%clk 0:00:12]} 55. Bd6 {[%clk 0:00:12]}  Rg1 {[%clk 0:00:10]} 56. e5 {[%clk 0:00:12]}  Kh8 {[%clk 0:00:09]} 57. e6 {[%clk 0:00:12]}  Rg7 {[%clk 0:00:09]} 58. Be5 {[%clk 0:00:11]}  Kh7 {[%clk 0:00:07]} 59. Rf7 {[%clk 0:00:12]}  Kh8 {[%clk 0:00:06]} 60. Bxg7+ {[%clk 0:00:12]}  Kg8 {[%clk 0:00:05]} 61. Bh6 {[%clk 0:00:11]}  Kh8 {[%clk 0:00:06]} 62. e7 {[%clk 0:00:10]}  Kg8 {[%clk 0:00:06]} 63. e8=Q# {[%clk 0:00:11]} 1-0


[Site "https://www.chess.com"]